[Event "4th Tata Steel India Rapid Open 2022"]
[Site "Kolkota"]
[Date "2022.12.01"]
[Round "8.2"]
[White "Nihal Sarin"]
[Black "Maghsoodloo, Parham"]
[Result "1-0"]
[ECO "A80"]
[WhiteElo "2670"]
[BlackElo "2720"]
[Annotator "TA"]
[PlyCount "121"]
[EventDate "2022.11.29"]
[EventType "tourn"]
[EventCountry "IND"]
[SourceTitle "playchess.com"]
[Source "ChessBase"]
[SourceQuality "1"]
[TimeControl "900+10"]

{[%evp 9,121,17,37,15,28,0,33,21,27,31,44,38,43,32,26,17,26,27,30,22,32,15,20,27,34,14,15,16,4,0,33,0,0,0,16,0,0,0,0,0,0,0,0,0,0,-4,0,0,0,0,0,0,0,0,0,0,0,0,0,0,72,77,169,181,233,239,270,235,227,163,330,284,1276,1401,1440,1106,1362,1244,29971,29969,29975,29976,29976,29977,29977,29978,29978,29979,29979,29980,29973,29974,29958,154,29983,29984,29984,29985,29985,29986,29987,29988,29988,29989,29989,29990,29990,29991,29991,29992,29993,29994,29995,29996]} 1. d4 {[%emt 0:00:02]} e6 {[%emt 0:00:18]} 2. Nf3 {[%emt 0:00:07]} f5 {[%emt 0:00:38]} 3. Bf4 {[%emt 0:00:55]} Nf6 {[%emt 0:00:08]} 4. e3 {[%emt 0:00:07]} b6 {[%emt 0:00:09]} 5. Be2 {[%emt 0:00:14]} Bb7 {[%emt 0:00:05]} 6. h3 {[%emt 0:00:31] A80: Dutch Defence: Unusual White second moves.} (6. c4 $5 {[%cal Re1g1]}) 6... Nc6 {[%emt 0:00:09] [#]} 7. Bh2 $146 {[%emt 0:01:22]} ({Predecessor:} 7. O-O g6 8. c4 Bg7 9. Nc3 Ne7 10. Nb5 d6 11. c5 Ne4 12. cxd6 cxd6 13. Nd2 {1-0 (32) Grachev,B (2640)-Morozevich,A (2788) Moscow 2008}) 7... Ne7 {[%emt 0:00:14]} 8. c4 {[%emt 0:00:10] White is slightly better.} Ng6 {[%emt 0:00:03]} 9. O-O {[%emt 0:00:02]} Bd6 {[%emt 0:00:04]} 10. Bxd6 {[%emt 0:00:08]} cxd6 {[%emt 0:00:02]} 11. Nc3 {[%emt 0:00:02]} d5 {[%emt 0:00:17]} 12. Rc1 {[%emt 0:01:26]} O-O {[%emt 0:00:03]} 13. cxd5 {[%emt 0:03:18]} Nxd5 {[%emt 0:00:03]} 14. Nxd5 {[%emt 0:00:01]} Bxd5 {[%emt 0:00:02]} 15. Bc4 {[%emt 0:00:01]} Ne7 {[%emt 0:00:02]} 16. Bxd5 {[%emt 0:00:36]} Nxd5 {[%emt 0:00:01]} 17. Ne5 {[%emt 0:00:04]} d6 {[%emt 0:00:32]} 18. Nd3 {[%emt 0:00:10]} Qd7 {[%emt 0:00:02]} 19. Qd2 {[%emt 0:01:35]} a5 {[%emt 0:00:07]} 20. Rc2 {[%emt 0:00:52]} Rfc8 {[%emt 0:00:08]} 21. Rfc1 {[%emt 0:00:01]} Ne7 {[%emt 0:01:12]} 22. Kf1 {[%emt 0:00:09]} Rxc2 {[%emt 0:00:03]} 23. Rxc2 {[%emt 0:00:01]} Rc8 {[%emt 0:00:01]} 24. Qc1 {[%emt 0:00:14]} Rxc2 {[%emt 0:00:18]} 25. Qxc2 $11 {[%emt 0:00:02][%mdl 4096] Endgame KQN-KQN} h6 {[%emt 0:00:17]} 26. Ke2 {[%emt 0:00:10]} g5 {[%emt 0:00:04]} 27. f3 {[%emt 0:00:38]} Kf7 {[%emt 0:00:07]} 28. Kd2 {[%emt 0:01:43]} Kg7 {[%emt 0:01:34]} 29. Qb3 {[%emt 0:00:33]} b5 {[%emt 0:00:01]} 30. Qc3 {[%emt 0:00:22]} Qa7 {[%emt 0:00:35]} 31. Qb3 {[%emt 0:00:02]} Qd7 {[%emt 0:00:01]} 32. Qc3 {[%emt 0:00:01]} b4 {[%emt 0:01:10]} 33. Qc4 {[%emt 0:00:02]} Nd5 {[%emt 0:00:01]} 34. e4 {[%emt 0:00:57]} Nf6 {[%emt 0:00:02]} (34... Nb6 $11 {keeps the balance.} 35. Qa6 Qc7) 35. e5 $1 $16 {[%emt 0:00:28]} dxe5 {[%emt 0:00:01]} (35... Nd5 36. Qa6 dxe5 37. Nxe5 $16) (35... Ne8 $16) 36. Nxe5 $18 {[%emt 0:00:06]} Qd6 {[%emt 0:00:45]} (36... Qe7 {is a better defense.} 37. Qa6 Nd5) 37. Qc5 {[%emt 0:00:02]} Qxc5 {[%emt 0:01:08]} 38. dxc5 {[%emt 0:00:01] KN-KN} Nd5 {[%emt 0:00:02]} 39. Nc4 {[%emt 0:01:14]} a4 $2 {[%emt 0:00:01]} (39... Kf6) 40. Nb6 {[%emt 0:00:01] And now Nxd5 would win.} Kf6 $2 {[%emt 0:00:01]} (40... Ne7 41. Kd3 (41. Nxa4 Kf6 $16) 41... a3) 41. Nxd5+ {[%emt 0:00:47]} ({Weaker is} 41. Nxa4 Ke7 $16) 41... exd5 {[%emt 0:00:01] KP-KP} 42. Kd3 {[%emt 0:00:00]} Ke5 {[%emt 0:00:03]} 43. g3 {[%emt 0:00:01][%cal Of3f4,Bg2g3,Bg3g4][%mdl 32] Threatens to win with f4+!} f4 {[%emt 0:00:37] [#]} 44. g4 $1 {[%emt 0:00:02]} b3 {[%emt 0:02:48] [#]} 45. axb3 $1 {[%emt 0:00:53]} axb3 {[%emt 0:00:01]} 46. Kc3 {[%emt 0:00:02]} d4+ {[%emt 0:00:01]} 47. Kxb3 {[%emt 0:00:05]} Kd5 {[%emt 0:00:01]} 48. c6 {[%emt 0:00:20]} Kxc6 {[%emt 0:01:12]} 49. Kc4 {[%emt 0:00:01]} d3 {[%emt 0:00:16]} 50. Kxd3 {[%emt 0:00:02]} Kc5 {[%emt 0:00:02]} 51. Kc3 $2 {[%emt 0:00:02]} (51. Ke4 {mates} Kc4 52. Kf5 Kd4 53. b4 Kc4 54. Kg6 Kd4 55. b5 Kd5 56. Kxh6) 51... Kb5 $2 {[%emt 0:00:22] A mistake that costs the game.} (51... Kd5 $16 52. b4 Kd6 53. Kc4 Ke7 54. b5 Kd6 55. Kd4 Ke6 56. Kc5 h5 57. gxh5 Kf5) 52. b4 {[%emt 0:00:01][%cal Bb2b4,Bb4b5,Bb5b6,Bb6b7][%mdl 32] White mates.} Kb6 {[%emt 0:00:01]} 53. Kc4 {[%emt 0:00:01]} Kc6 {[%emt 0:00:01]} 54. b5+ {[%emt 0:00:00]} Kb6 {[%emt 0:00:01]} 55. Kb4 {[%emt 0:00:01]} Kb7 {[%emt 0:00:02]} 56. Kc5 {[%emt 0:00:00]} Kc7 {[%emt 0:00:01]} 57. b6+ {[%emt 0:00:01]} Kb7 {[%emt 0:00:02]} 58. Kb5 {[%emt 0:00:01]} Kb8 {[%emt 0:00:01]} 59. Kc6 {[%emt 0:00:01]} Kc8 {[%emt 0:00:02]} 60. b7+ {[%emt 0:00:07]} Kb8 {[%emt 0:00:01]} 61. Kb6 {[%emt 0:00:00] Weighted Error Value: White=0.18 (very precise) /Black=0.32} 1-0

[Event "4th Tata Steel India Rapid Open 2022"]
[Site "Kolkota"]
[Date "2022.12.01"]
[Round "8.3"]
[White "Abdusattorov, Nodirbek"]
[Black "Mamedyarov, Shakhriyar"]
[Result "1/2-1/2"]
[ECO "C50"]
[WhiteElo "2713"]
[BlackElo "2741"]
[Annotator "TA"]
[PlyCount "107"]
[EventDate "2022.11.29"]
[EventType "tourn"]
[EventCountry "IND"]
[SourceTitle "playchess.com"]
[Source "ChessBase"]
[SourceQuality "1"]
[TimeControl "900+10"]

{[%evp 12,107,7,0,7,6,12,7,5,0,6,12,12,7,14,0,0,0,0,1,21,2,14,0,19,10,8,0,0,-4,-5,-41,-8,-22,0,0,0,0,0,-40,-40,-40,-40,-47,0,0,0,0,0,-83,-2,-64,-65,-71,-32,-63,-8,-8,-8,-8,-8,-8,-8,-8,-8,-8,-8,-60,-71,-75,-62,-56,-68,-123,-73,-74,0,0,0,0,0,0,0,0,0,0,0,0,0,0,0,0,0,-8,0,-8,-8,-8]} 1. e4 {[%emt 0:00:04]} e5 {[%emt 0:00:02]} 2. Nf3 {[%emt 0:00:02]} Nc6 {[%emt 0:00:01]} 3. Bc4 {[%emt 0:00:02]} Nf6 {[%emt 0:00:02]} 4. d3 {[%emt 0:00:01]} Bc5 {[%emt 0:00:01]} 5. Nc3 {[%emt 0:00:00]} h6 {[%emt 0:00:07]} 6. O-O {[%emt 0:00:04]} O-O {[%emt 0:00:06]} 7. h3 $1 {[%emt 0:00:01][%mdl 4] is now more promising than 7.Be3.} Re8 {[%emt 0:00:27] C50: Hungarian Defence and Giuoco Pianissimo.} 8. Be3 {[%emt 0:00:30]} Bb6 {[%emt 0:00:12]} 9. a3 {[%emt 0:01:58]} d6 {[%emt 0:00:08]} 10. Re1 {[%emt 0:00:09]} Be6 {[%emt 0:00:18]} 11. Bxe6 {[%emt 0:00:55]} Rxe6 {[%emt 0:00:02]} (11... fxe6 {simplifies} 12. Bxb6 axb6 13. Nb1 Nd7) 12. Bxb6 {[%emt 0:00:02]} axb6 {[%emt 0:00:02] [#]} 13. d4 $146 {[%emt 0:00:04]} ({Predecessor:} 13. Qd2 d5 14. exd5 Nxd5 15. Nxd5 Qxd5 16. Qe3 Rg6 17. Qe4 Qd7 18. Nxe5 Nxe5 19. Qxe5 Qxh3 {1-0 (38) Shreya,P-Noshin,A (1129) Dhaka 2022}) 13... exd4 {[%emt 0:00:17]} 14. Nxd4 {[%emt 0:00:02]} Nxd4 {[%emt 0:00:19]} 15. Qxd4 {[%emt 0:00:01]} Qd7 {[%emt 0:00:48]} 16. Re3 {[%emt 0:00:05]} Rae8 {[%emt 0:00:10]} 17. Rae1 {[%emt 0:00:01]} Qc6 {[%emt 0:00:11]} 18. a4 {[%emt 0:01:30]} Qc5 {[%emt 0:00:24]} 19. Qd3 {[%emt 0:01:35]} c6 {[%emt 0:01:07]} 20. Kf1 {[%emt 0:01:50]} h5 {[%emt 0:00:43][%cal Bh6h5,Bh5h4][%mdl 32]} 21. g3 {[%emt 0:01:18]} h4 {[%emt 0:00:27] White should prevent ...hxg3.} 22. g4 $1 {[%emt 0:00:02]} Qe5 {[%emt 0:00:35]} (22... Nd7 $5 {[%cal Rd7e5]} 23. b3 Ne5 $11) 23. Kg1 {[%emt 0:00:40] Against Qh2+} Nd7 {[%emt 0:01:06][%cal Bf6d7,Bd7e5,Be5g6,Bg6f4][%mdl 32]} 24. Qd2 {[%emt 0:00:56][%cal Oc3d5]} Qf6 {[%emt 0:01:56]} 25. Qe2 {[%emt 0:02:39]} Ne5 {[%emt 0:00:22]} 26. b3 {[%emt 0:00:37]} g5 {[%emt 0:00:15]} 27. Rd1 {[%emt 0:00:20]} Qf4 {[%emt 0:01:31]} (27... Kg7 $15) 28. Kg2 $11 {[%emt 0:00:36]} Rf6 {[%emt 0:00:03]} 29. Nb1 {[%emt 0:00:38]} Ng6 {[%emt 0:00:58]} 30. Nd2 {[%emt 0:00:00] [#]} (30. c4 $11) 30... Qe5 {[%emt 0:01:06]} ({Black should play} 30... Rfe6 $1 $17) 31. Kg1 {[%emt 0:00:02]} (31. Kh1 $11) 31... Nf4 $15 {[%emt 0:00:01]} 32. Qf1 {[%emt 0:00:01]} Qc5 {[%emt 0:00:11]} 33. Qc4 {[%emt 0:01:46]} d5 {[%emt 0:01:52]} (33... Rfe6 $15) 34. Qxc5 $11 {[%emt 0:00:23]} bxc5 {[%emt 0:00:01]} 35. exd5 {[%emt 0:00:19]} Rxe3 {[%emt 0:01:44]} 36. fxe3 {[%emt 0:00:01]} Nxh3+ {[%emt 0:00:49][%mdl 4096] Endgame KRN-KRN} 37. Kg2 {[%emt 0:00:20]} Nf2 {[%emt 0:00:01] Against Ne4} 38. Rf1 {[%emt 0:00:44]} h3+ $1 {[%emt 0:00:09]} ({Don't do} 38... Nxg4 39. Rxf6 Nxf6 40. dxc6 bxc6 41. a5 $16) 39. Kg3 {[%emt 0:00:51] [#]} ({White should try} 39. Kg1 $11 h2+ 40. Kxh2 cxd5 41. Kg3 Ne4+ 42. Kg2) 39... Ne4+ $1 $15 {[%emt 0:01:15]} 40. Kh2 {[%emt 0:00:01]} Rxf1 {[%emt 0:00:17]} (40... Nxd2 $2 41. Rxf6 cxd5 42. Rf5 $18) 41. Nxf1 {[%emt 0:00:02] Threatens to win with dxc6.} cxd5 $17 {[%emt 0:00:02][%cal Of7f5] KN-KN} 42. Ng3 {[%emt 0:00:20] Prevents f5.} (42. Kxh3 $15 Kg7 43. Kg2) 42... Nf2 {[%emt 0:00:39]} (42... Nxg3 $142 43. Kxg3 Kg7 44. Kxh3 Kf6) 43. Nf5 {[%emt 0:00:06]} Kf8 {[%emt 0:00:31]} (43... Nxg4+ $17 44. Kxh3 Nf2+ 45. Kg2 Ne4) 44. Nd6 $1 $11 {[%emt 0:00:28] The position is equal.} b6 {[%emt 0:00:23]} 45. Nc8 $1 {[%emt 0:00:05]} Nxg4+ {[%emt 0:00:34]} 46. Kxh3 {[%emt 0:00:02]} Nxe3 {[%emt 0:00:01]} 47. Nxb6 {[%emt 0:00:05] And now a5 would win.} Nxc2 {[%emt 0:00:04]} 48. Nxd5 {[%emt 0:00:06]} Ke8 {[%emt 0:00:09]} 49. Kg4 {[%emt 0:00:05]} Kd7 {[%emt 0:00:04]} 50. a5 {[%emt 0:00:14]} Kc6 {[%emt 0:00:18]} 51. a6 {[%emt 0:00:13]} Nd4 {[%emt 0:00:14]} (51... Kxd5 $2 52. a7 $18) 52. b4 {[%emt 0:00:29]} c4 {[%emt 0:00:05]} (52... Kxd5 $2 53. a7 cxb4 54. a8=Q+ $18 (54. a8=B+ Nc6 55. Bb7 b3 56. Bc8 Ne7 57. Bb7+ Kd4 58. Kxg5 b2 59. Kf6 b1=Q 60. Bg2 Nd5+ 61. Bxd5 Kxd5 62. Ke7 Ke5 63. Kd8 Kd6 64. Ke8 Ke6 65. Kf8 Qg6 66. Ke8 Qg8#)) 53. Ne3 {[%emt 0:00:22]} c3 {[%emt 0:00:09] Strongly threatening ...f6.} 54. Kxg5 {[%emt 0:00:01] Weighted Error Value: White=0.13 (very precise) /Black=0.11 (very precise)} (54. a7 $5 Kb7 $8 55. Kxg5 $11) 1/2-1/2

[Event "4th Tata Steel India Rapid Open 2022"]
[Site "Kolkota"]
[Date "2022.12.01"]
[Round "8.4"]
[White "Gukesh D"]
[Black "Sethuraman, S.P."]
[Result "1-0"]
[ECO "D78"]
[WhiteElo "2725"]
[BlackElo "2643"]
[Annotator "TA"]
[PlyCount "127"]
[EventDate "2022.11.29"]
[EventType "tourn"]
[EventCountry "IND"]
[SourceTitle "playchess.com"]
[Source "ChessBase"]
[SourceQuality "1"]
[TimeControl "900+10"]

{[%evp 15,127,27,24,22,20,18,34,40,41,6,0,1,13,0,36,22,20,8,17,20,15,10,14,12,15,8,14,6,27,8,12,6,8,6,22,20,27,10,31,28,30,19,22,0,0,0,27,27,27,34,29,29,29,31,34,30,34,25,59,12,16,18,35,35,36,35,39,25,39,39,39,39,39,39,39,39,39,39,39,25,25,25,22,14,14,14,14,14,19,19,102,37,38,38,106,106,108,110,397,397,368,312,338,338,29953,29953,29939,9733,5802,1794,29981,29982,29981,29981]} 1. c4 {[%emt 0:00:02]} c6 {[%emt 0:00:01]} 2. Nf3 {[%emt 0:00:27]} d5 {[%emt 0:00:04]} 3. g3 {[%emt 0:00:09]} g6 {[%emt 0:00:03]} 4. Bg2 {[%emt 0:00:09]} Bg7 {[%emt 0:00:02]} 5. O-O {[%emt 0:00:03]} Nf6 {[%emt 0:00:18]} 6. b3 {[%emt 0:00:03]} Ne4 {[%emt 0:00:06]} 7. d4 {[%emt 0:00:01]} O-O {[%emt 0:00:03]} 8. Bb2 {[%emt 0:00:02]} Bf5 {[%emt 0:00:32]} 9. Nh4 {[%emt 0:00:25] Recently 9.e3 got a lot of attention. D78: Fianchetto Grünfeld: 6 0-0 c6.} Be6 {[%emt 0:00:05]} 10. Qc2 {[%emt 0:00:02]} Nf6 {[%emt 0:02:18]} 11. Nd2 {[%emt 0:00:15] White is slightly better.} a5 {[%emt 0:00:02]} 12. e4 {[%emt 0:02:17]} dxe4 {[%emt 0:00:03]} 13. Nxe4 {[%emt 0:00:02]} Nxe4 {[%emt 0:00:02]} 14. Bxe4 {[%emt 0:00:02] [#]} Nd7 $146 {[%emt 0:01:27]} ({Predecessor:} 14... Bh3 15. Rfe1 Nd7 16. Rad1 Nf6 17. Bh1 a4 18. bxa4 e6 19. Bc3 Re8 20. Rb1 Qc7 {1-0 (40) Magalashvili,D (2456)-Mischuk,D (2364) Chess.com INT 2020}) 15. Rfe1 {[%emt 0:00:02]} Nf6 {[%emt 0:00:28]} 16. Bg2 {[%emt 0:00:12]} a4 {[%emt 0:04:03]} 17. Bc3 {[%emt 0:05:21]} axb3 {[%emt 0:00:37]} 18. axb3 {[%emt 0:00:01]} Rxa1 {[%emt 0:00:03]} 19. Rxa1 {[%emt 0:00:02]} Qc8 {[%emt 0:00:12]} 20. Qe2 {[%emt 0:00:41]} Re8 {[%emt 0:00:13]} 21. Nf3 {[%emt 0:08:22]} Bh3 {[%emt 0:01:52]} 22. Bh1 {[%emt 0:00:00]} Bg4 {[%emt 0:00:16]} 23. Qe3 {[%emt 0:00:00]} Bxf3 {[%emt 0:01:10]} 24. Bxf3 {[%emt 0:00:00]} e5 {[%emt 0:05:10]} 25. dxe5 {[%emt 0:00:00]} Nd7 $1 {[%emt 0:00:00][%cal Bf6d7,Bd7e5,Be5d3][%mdl 32]} 26. Bg2 {[%emt 0:00:00] Hoping for f4.} Nxe5 {[%emt 0:00:00]} 27. Re1 {[%emt 0:00:00]} Re6 $1 {[%emt 0:00:00][%cal Oe5c4]} 28. Qd2 {[%emt 0:00:00]} Qd7 $1 {[%emt 0:00:00]} 29. f4 {[%emt 0:00:35]} (29. Qxd7 {simplifies} Nxd7 30. Rxe6 fxe6 31. Bb4) 29... Qxd2 {[%emt 0:00:00]} 30. Bxd2 {[%emt 0:00:01] This pair of bishops is nice.} Nd3 {[%emt 0:00:00]} (30... Ng4 $5 {[%cal Rg7d4]} 31. Rxe6 Bd4+ 32. Be3 Bxe3+ 33. Rxe3 Nxe3 $11) 31. Rxe6 {[%emt 0:00:02]} fxe6 $11 {[%emt 0:00:00][%mdl 4096] Endgame KBB-KBN} 32. Kf1 {[%emt 0:00:01]} Nc5 {[%emt 0:00:07]} 33. b4 {[%emt 0:00:04]} Nb3 {[%emt 0:00:04]} 34. Be1 {[%emt 0:00:46]} Nd4 {[%emt 0:00:06]} 35. Bf2 {[%emt 0:00:18]} Kf7 {[%emt 0:00:05]} 36. Be4 {[%emt 0:00:03]} e5 {[%emt 0:00:20]} 37. fxe5 {[%emt 0:00:17]} (37. Bxd4 $1 $14 exd4 38. Ke2) 37... Bxe5 {[%emt 0:00:02]} 38. Ke1 {[%emt 0:00:02]} Ke7 {[%emt 0:00:47]} 39. Kd2 {[%emt 0:00:02]} Ne6 {[%emt 0:00:10]} 40. Kd3 {[%emt 0:00:02]} Kd7 {[%emt 0:00:19]} 41. Be3 {[%emt 0:00:01]} Bd6 {[%emt 0:00:23]} 42. c5 {[%emt 0:00:28]} Be5 {[%emt 0:00:01]} 43. Kc4 {[%emt 0:00:05]} Nc7 {[%emt 0:00:14]} 44. Bf2 {[%emt 0:00:02]} Nb5 {[%emt 0:00:22]} 45. Bg2 {[%emt 0:00:04]} Na3+ {[%emt 0:00:05]} 46. Kd3 {[%emt 0:00:02]} Nb5 {[%emt 0:00:06]} 47. h4 {[%emt 0:00:02]} Bc3 {[%emt 0:00:15]} 48. Kc4 {[%emt 0:00:04]} Bd2 {[%emt 0:00:01]} 49. g4 {[%emt 0:00:25]} Na3+ {[%emt 0:00:20]} 50. Kb3 {[%emt 0:00:02]} Nb5 {[%emt 0:00:01]} 51. g5 {[%emt 0:00:22]} Ke7 {[%emt 0:00:24]} 52. Bh3 {[%emt 0:00:07]} h6 {[%emt 0:00:06]} (52... Kd8 $11 {keeps the balance.}) 53. gxh6 {[%emt 0:00:18]} ({Better is} 53. Kc2 $16 Bf4 54. gxh6 Bxh6 55. Bc8) 53... Bxh6 $14 {[%emt 0:00:01]} 54. Bc8 {[%emt 0:00:01]} Kd8 {[%emt 0:00:12]} (54... Bd2 $14) 55. Bxb7 $16 {[%emt 0:00:23]} Kc7 {[%emt 0:00:01]} 56. Ba6 {[%emt 0:00:09] And now Kc4 would win.} Bf4 $2 {[%emt 0:00:02][%mdl 8192] [#] This costs Black the game.} (56... Bd2 $16 {was called for.} 57. Kc4 Na3+ 58. Kd4 (58. Kb3 Nb5 $16) 58... Nc2+ 59. Ke5 Nxb4) 57. Kc4 $18 {[%emt 0:00:43]} Na3+ {[%emt 0:00:13]} 58. Kd3 {[%emt 0:00:10]} Kd7 {[%emt 0:00:27]} 59. Be1 {[%emt 0:00:08]} Nb5 $2 {[%emt 0:00:15]} (59... Bh2 $18 60. Ke4 Nc2) 60. Bxb5 {[%emt 0:00:19]} cxb5 {[%emt 0:00:02]} 61. Ke4 {[%emt 0:00:01]} Bh2 {[%emt 0:00:26]} 62. Kd5 {[%emt 0:00:08] [#] aiming for c6+.} Kc7 {[%emt 0:00:11]} 63. Ke6 {[%emt 0:00:14]} Bf4 {[%emt 0:00:08]} 64. Kf6 {[%emt 0:00:02] Weighted Error Value: White=0.07 (flawless) /Black=0.43} 1-0

[Event "4th Tata Steel India Rapid Open 2022"]
[Site "Kolkota"]
[Date "2022.12.01"]
[Round "8.5"]
[White "Vidit, Santosh Gujrathi"]
[Black "So, Wesley"]
[Result "1/2-1/2"]
[ECO "C52"]
[WhiteElo "2724"]
[BlackElo "2760"]
[Annotator "TA"]
[PlyCount "94"]
[EventDate "2022.11.29"]
[EventType "tourn"]
[EventCountry "IND"]
[SourceTitle "playchess.com"]
[Source "ChessBase"]
[SourceQuality "1"]
[TimeControl "900+10"]

{[%evp 14,94,-21,-16,-20,-24,-35,-35,0,0,0,0,0,0,0,0,0,0,16,2,12,10,14,26,35,10,6,13,43,4,5,0,0,0,0,0,0,0,0,0,0,-23,0,-54,-48,-47,-47,-35,-35,-14,-34,-112,-111,-190,0,-8,-9,-18,2,0,0,0,0,0,7,0,0,-9,-9,-2,0,0,0,0,0,0,2,0,0,0,2,-2,-4]} 1. e4 {[%emt 0:00:04]} e5 {[%emt 0:00:04]} 2. Nf3 {[%emt 0:00:03]} Nc6 {[%emt 0:00:02]} 3. Bc4 {[%emt 0:00:03]} Bc5 {[%emt 0:00:02]} 4. b4 {[%emt 0:00:02]} Bxb4 {[%emt 0:00:07][%cal Bc5b4,Bb4a5,Ba5b6][%mdl 32]} 5. c3 {[%emt 0:00:02]} Ba5 {[%emt 0:00:09]} 6. d4 {[%emt 0:00:16]} d6 {[%emt 0:00:46]} 7. Qb3 {[%emt 0:00:09]} Qd7 {[%emt 0:00:06]} 8. O-O $1 {[%emt 0:00:18][%mdl 4] is now more promising than 8.dxe5.} Bb6 $1 {[%emt 0:00:03] C52: Evans Gambit Accepted: 5 c3 Ba5.} 9. Nbd2 {[%emt 0:00:08]} Na5 {[%emt 0:00:17]} 10. Qc2 {[%emt 0:00:03]} Nxc4 {[%emt 0:00:34] Black is slightly better.} 11. Nxc4 {[%emt 0:00:02]} Qc6 {[%emt 0:00:01] Inhibits a4.} 12. Nxb6 {[%emt 0:00:20]} axb6 {[%emt 0:00:01]} 13. dxe5 {[%emt 0:00:02]} dxe5 {[%emt 0:00:11]} 14. Nxe5 {[%emt 0:00:03]} Qa4 {[%emt 0:00:02]} 15. Qd3 {[%emt 0:00:21] Qg3 is the strong threat.} Ne7 {[%emt 0:01:04]} 16. Qg3 {[%emt 0:05:31]} O-O {[%emt 0:00:08]} 17. Re1 {[%emt 0:00:16] [#]} Be6 $146 {[%emt 0:02:20]} ({Predecessor:} 17... Re8 18. Bf4 Ng6 19. Nxg6 hxg6 20. Bxc7 Rxe4 21. h3 Qxa2 22. Rxe4 Qxa1+ 23. Kh2 Be6 24. Bxb6 {½-½ (39) Sindarov,J (2609)-Erdos,V (2615) Warsaw 2021}) 18. h4 {[%emt 0:01:12][%cal Bh2h4,Bh4h5][%mdl 32] White wants to play h5.} (18. Bh6 Ng6 19. Nxg6 hxg6 $11) 18... Kh8 {[%emt 0:00:04]} 19. h5 {[%emt 0:00:11] next h6 is good for White.} h6 {[%emt 0:00:03]} 20. Bf4 {[%emt 0:01:06][%cal Bc1f4,Bf4c7,Bc7b6,Bb6d4][%mdl 32]} Ra5 {[%emt 0:02:04]} 21. Rad1 {[%emt 0:01:01]} Qxa2 {[%emt 0:01:02]} 22. Nf3 {[%emt 0:02:23]} Rxh5 {[%emt 0:01:18]} 23. Bxc7 {[%emt 0:00:02]} Ng6 {[%emt 0:01:20]} 24. Bxb6 {[%emt 0:00:10]} Kh7 {[%emt 0:00:54]} 25. Bd4 {[%emt 0:00:42]} Re8 {[%emt 0:00:26]} 26. Ra1 {[%emt 0:00:54]} Qc4 {[%emt 0:00:10]} 27. Ra7 {[%emt 0:00:49]} Qc6 {[%emt 0:00:28]} 28. Raa1 {[%emt 0:00:43]} (28. Nd2 $11) 28... Bd7 $1 $15 {[%emt 0:00:39]} 29. Nd2 {[%emt 0:00:54]} Rg5 $1 {[%emt 0:01:07] Prevents f3.} 30. Qh2 {[%emt 0:00:02]} f5 {[%emt 0:00:29][%cal Rf5e4]} 31. Ra5 {[%emt 0:00:10]} b5 {[%emt 0:01:30][%cal Rf5e4]} 32. Ra7 {[%emt 0:00:36]} (32. f3 $15) 32... fxe4 $17 {[%emt 0:00:03] And now ...Ne5 would win.} 33. Qc7 {[%emt 0:00:31] [#]} (33. Rc7 $17 e3 34. fxe3 (34. Rxc6 exd2 35. Rf1 Re1) 34... Rxg2+ 35. Qxg2 Qxc7 36. Qh2) 33... Nf8 $2 {[%emt 0:02:08]} (33... e3 $1 $19 {[%csl Gg5][%cal Rc6g2]} 34. Qxc6 (34. Qxd7 $2 Qxg2#) 34... exd2) 34. Qxc6 {[%emt 0:00:40] The position is equal.} Bxc6 {[%emt 0:00:00]} 35. Be3 {[%emt 0:00:42]} Rd5 {[%emt 0:00:03]} 36. Rc7 {[%emt 0:00:17]} Bd7 {[%emt 0:00:10]} 37. Ra1 {[%emt 0:00:12]} Ne6 {[%emt 0:00:07]} 38. Rb7 {[%emt 0:00:05]} Rd3 {[%emt 0:00:29]} 39. Raa7 {[%emt 0:00:20]} Bc6 {[%emt 0:00:01]} 40. Re7 {[%emt 0:00:10]} Rxe7 {[%emt 0:00:01]} ({Don't play} 40... Rxc3 41. Rxe8 Bxe8 42. Re7 $16) 41. Rxe7 {[%emt 0:00:01]} Bd5 {[%emt 0:00:51]} 42. Nxe4 $1 {[%emt 0:00:15][%mdl 64] [#] aiming for Nf6+.} Kg6 {[%emt 0:00:12] Inhibits Nf6.} 43. Nd6 {[%emt 0:00:05]} Rxc3 {[%emt 0:00:18]} 44. Nxb5 {[%emt 0:00:05]} Rb3 {[%emt 0:00:05]} 45. Nd4 {[%emt 0:00:23]} Nxd4 {[%emt 0:00:03]} 46. Bxd4 {[%emt 0:00:01]} Rb7 {[%emt 0:00:01]} 47. Rxb7 {[%emt 0:00:02]} Bxb7 {[%emt 0:00:01] Weighted Error Value: White=0.13 (very precise) /Black=0.08 (flawless)} 1/2-1/2